bitfinex-derivatives/quotes_BTCF0:USTF0_20251215
["timestamp","ask_amount","ask_price","bid_price","bid_amount"]
[1765814987978,0.13229417,87178.0,87177.0,1.55532771]
[1765814988172,0.13529417,87178.0,87177.0,1.55532771]
[1765814988369,0.83682598,87178.0,87177.0,1.55532771]
[1765814988572,0.50718598,87178.0,87177.0,1.55532771]
[1765814989174,0.16407598,87178.0,87177.0,1.55532771]
[1765814989776,0.83682598,87178.0,87177.0,1.55532771]
[1765814989972,0.80804417,87178.0,87177.0,1.55532771]
[1765814990178,0.80804417,87178.0,87177.0,0.70454022]
[1765814990377,0.80804417,87178.0,87177.0,1.42906022]
[1765814991175,0.13529417,87178.0,87177.0,1.42906022]
[1765814991880,0.13529417,87178.0,87177.0,1.54376871]
[1765814992474,0.10000417,87178.0,87177.0,1.54376871]
[1765814992670,0.18000417,87178.0,87177.0,0.86792871]
[1765814992878,0.18000417,87178.0,87177.0,1.54376871]
[1765814993781,0.09416485,87186.0,87185.0,0.68731]
[1765814994079,0.19011485,87186.0,87185.0,1.41175]
[1765814994487,0.19011485,87186.0,87185.0,1.52645849]
[1765814994994,0.19311485,87186.0,87185.0,1.52645849]
[1765814995282,0.19311485,87186.0,87185.0,1.60772773]
[1765814995783,0.19011485,87186.0,87185.0,1.60772773]
[1765814995972,0.19211485,87186.0,87185.0,1.60772773]
[1765814996176,0.19211485,87186.0,87185.0,1.52645849]
[1765814998083,0.09404,87193.0,87192.0,0.8812191]
[1765814998284,0.28404,87193.0,87192.0,1.6055791]
[1765814998678,0.28404,87193.0,87192.0,1.72027707]
[1765814999280,0.67275,87217.0,87216.0,0.6873059]
[1765814999481,0.17,87217.0,87216.0,0.78091219]
[1765814999687,0.17,87217.0,87216.0,0.99128219]
[1765815000286,0.0114633,87237.0,87217.0,0.67584]
[1765815000488,0.17229312,87218.0,87217.0,0.67584]
[1765815000782,0.17229312,87218.0,87217.0,0.84796204]
[1765815000989,0.84504312,87218.0,87217.0,0.8389372]
[1765815001194,0.84504312,87218.0,87217.0,0.72428]
[1765815001376,0.34311,87217.0,87216.0,0.124073]
[1765815001579,0.84456,87217.0,87216.0,0.859819]
[1765815001782,0.17,87217.0,87216.0,1.402459]
[1765815002187,0.0114616,87250.0,87230.0,0.68131]
[1765815002188,0.0114628,87240.0,87230.0,0.68131]
[1765815002484,0.0114628,87240.0,87234.0,0.6927735]
[1765815002485,0.34558,87235.0,87234.0,0.6927735]
[1765815002689,0.52558,87235.0,87234.0,0.6927735]
[1765815002875,0.18,87235.0,87234.0,0.6927735]
[1765815003278,0.18,87235.0,87234.0,0.71328281]
[1765815004685,0.52558,87235.0,87234.0,0.70181931]
[1765815004885,0.52558,87235.0,87234.0,0.74202167]
[1765815005092,0.52558,87235.0,87234.0,0.73055807]
[1765815005392,0.85703,87235.0,87234.0,0.73055807]
[1765815005790,0.85803,87235.0,87234.0,0.73055807]
[1765815006185,0.85803,87235.0,87234.0,1.45463807]
[1765815007677,0.85803,87235.0,87234.0,0.04924807]
[1765815007887,0.67703,87227.0,87226.0,0.00017204]
[1765815008088,0.67703,87227.0,87226.0,1.05543204]
[1765815008089,0.2,87227.0,87226.0,1.05543204]
[1765815008393,0.87703,87227.0,87226.0,1.5406965]
[1765815008777,0.87703,87227.0,87226.0,0.8166565]
[1765815008977,0.87703,87227.0,87216.0,0.30502629]
[1765815008978,0.6884958,87217.0,87216.0,0.09360629]
[1765815009285,0.67703,87207.0,87206.0,0.724]
[1765815009486,0.67703,87207.0,87192.0,0.19391]
[1765815009487,0.67703,87203.0,87201.0,0.08126924]
[1765815009677,0.84703,87203.0,87202.0,0.7354678]
[1765815009878,0.84703,87203.0,87202.0,0.02033664]
[1765815010078,0.6884981,87200.0,87199.0,0.08126924]
[1765815010278,0.67703,87195.0,87194.0,0.00017204]
[1765815010485,0.85703,87195.0,87194.0,0.00017204]
[1765815010688,0.85703,87195.0,87194.0,0.02026772]
[1765815010894,0.15928705,87195.0,87194.0,0.81625398]
[1765815011187,0.17,87195.0,87194.0,0.7961583]
[1765815011391,0.17,87195.0,87194.0,1.5315872]
[1765815011587,0.17,87195.0,87194.0,0.8076272]
[1765815011782,0.67703,87195.0,87194.0,0.80448241]
[1765815011982,0.67703,87195.0,87194.0,0.19270193]
[1765815012287,0.85703,87195.0,87194.0,0.02037605]
[1765815012483,0.85703,87195.0,87194.0,0.02637605]
[1765815012807,0.67703,87190.0,87189.0,2.81e-06]
[1765815013094,0.67703,87190.0,87170.0,0.25933298]
[1765815013095,0.6885008,87179.0,87178.0,0.1017171]
[1765815013285,0.6885014,87175.0,87174.0,0.1017171]
[1765815013593,0.18,87175.0,87174.0,0.80296335]
[1765815013791,0.67703,87175.0,87174.0,0.01993625]
[1765815013994,0.8935623,87168.0,87167.0,0.14295748]
[1765815014186,1.0835623,87168.0,87167.0,0.14295748]
[1765815014491,0.67703,87174.0,87173.0,0.0114716]
[1765815014791,0.67703,87174.0,87167.0,0.02088882]
[1765815014792,0.67703,87168.0,87167.0,0.02088882]
[1765815014995,0.67703,87167.0,87166.0,0.00017204]
[1765815015192,0.85703,87167.0,87166.0,0.02094229]
[1765815015880,0.85703,87167.0,87166.0,0.0204553]
[1765815016086,0.67703,87159.0,87158.0,0.14295748]
[1765815016288,0.8685035,87159.0,87158.0,0.16387492]
[1765815016596,0.8785035,87159.0,87158.0,0.02091744]
[1765815016785,0.6885039,87156.0,87155.0,0.14295748]
[1765815016986,0.8885039,87156.0,87155.0,0.14295748]
[1765815017193,0.8885039,87156.0,87155.0,0.02094606]
[1765815017493,0.67703,87153.0,87152.0,0.14295748]
[1765815017687,0.67703,87152.0,87151.0,0.0114744]
[1765815017884,0.70211037,87152.0,87151.0,0.0114744]
[1765815018088,0.67703,87148.0,87147.0,0.00028482]
[1765815018290,0.85703,87148.0,87147.0,0.68159482]
[1765815018495,0.8685049,87148.0,87147.0,0.02124205]
[1765815018691,0.18,87148.0,87147.0,0.70255205]
[1765815018894,0.85703,87148.0,87147.0,0.02124205]
[1765815019890,0.85703,87148.0,87147.0,0.02224205]
[1765815020290,0.85803,87148.0,87147.0,0.02224205]
[1765815020486,0.85803,87148.0,87147.0,0.16454695]
[1765815020901,0.85803,87148.0,87147.0,0.02224205]
[1765815021405,0.181,87148.0,87147.0,0.70355205]
[1765815021701,0.191,87148.0,87147.0,0.70355205]
[1765815021998,0.19,87148.0,87147.0,0.70355205]
[1765815022194,0.191,87148.0,87147.0,0.70355205]
[1765815022393,0.53658,87148.0,87147.0,1.42775205]
[1765815022593,0.31969999,87148.0,87147.0,0.70355205]
[1765815022798,0.49969999,87148.0,87147.0,0.70355205]
[1765815023192,0.18,87148.0,87147.0,0.70655205]
[1765815025696,0.34558,87162.0,87161.0,0.33122]
[1765815025902,0.84703,87162.0,87161.0,0.33122]
[1765815026101,0.51558,87162.0,87161.0,0.6927832]
[1765815026300,0.84703,87162.0,87161.0,0.33122]
[1765815026500,0.17,87162.0,87161.0,0.68131]
[1765815026906,0.00017204,87164.0,87163.0,0.68131]
[1765815027091,0.19017204,87164.0,87163.0,0.68131]
[1765815027702,0.19017204,87164.0,87163.0,0.82536384]
[1765815027703,0.00017204,87164.0,87163.0,0.82536384]
[1765815027903,0.0114685,87198.0,87163.0,0.82536384]
[1765815027904,0.0114702,87184.0,87174.0,0.68131]
[1765815028100,0.16009869,87175.0,87174.0,1.4170615]
[1765815028305,0.67703,87164.0,87163.0,0.04079719]
[1765815028502,0.87703,87164.0,87163.0,0.35009]
[1765815028806,0.87703,87164.0,87155.0,0.00017204]
[1765815028807,0.67703,87162.0,87155.0,0.00017204]
[1765815029100,0.83703,87162.0,87155.0,0.00017204]
[1765815029304,0.6885039,87156.0,87155.0,0.00017204]
[1765815029507,0.8785039,87156.0,87155.0,0.00017204]
[1765815030509,0.8785039,87156.0,87155.0,0.00317204]
[1765815031405,0.86593,87156.0,87155.0,0.00317204]
[1765815032699,0.86593,87156.0,87155.0,0.00217204]
[1765815033009,0.86593,87156.0,87155.0,0.00117204]
[1765815033803,1.00688,87156.0,87155.0,0.00117204]
[1765815033999,0.86593,87156.0,87155.0,0.01264604]
[1765815034502,0.86593,87156.0,87155.0,0.71156604]
[1765815036113,1.00688,87156.0,87155.0,0.00117204]
[1765815036304,1.00688,87156.0,87155.0,0.00017204]
[1765815037306,1.00688,87156.0,87155.0,0.00117204]
[1765815037511,0.86593,87156.0,87155.0,0.00117204]
[1765815037810,0.86593,87156.0,87155.0,0.00017204]
[1765815038301,0.86593,87156.0,87155.0,0.00117204]
[1765815039304,0.86593,87156.0,87155.0,0.35599204]
[1765815040013,0.86593,87156.0,87155.0,0.70009204]
[1765815040510,0.19,87156.0,87155.0,0.70009204]
[1765815040912,0.6781524,87168.0,87167.0,0.35482]
[1765815041115,0.66668,87167.0,87166.0,0.0114724]
[1765815041418,0.83668,87167.0,87166.0,0.0114724]
[1765815042204,0.6781529,87164.0,87163.0,0.0114728]
[1765815042508,0.6781529,87164.0,87158.0,0.23174217]
[1765815042509,0.66668,87159.0,87158.0,0.0114736]
[1765815042714,0.84668,87159.0,87158.0,0.7103936]
[1765815043217,0.18,87159.0,87158.0,0.7103936]
[1765815043513,0.84668,87159.0,87158.0,0.0114736]
[1765815043813,0.6781539,87156.0,87155.0,0.00017204]
[1765815044114,0.17,87156.0,87155.0,0.69909204]
[1765815044511,0.0114698,87187.0,87156.0,0.20983]
[1765815044512,0.0114716,87174.0,87156.0,0.20983]
[1765815044714,0.17017204,87172.0,87171.0,0.35482]
[1765815044907,0.17017204,87172.0,87171.0,0.69892]
[1765815045908,0.49496204,87172.0,87171.0,0.69892]
[1765815046214,0.83685204,87172.0,87171.0,0.69892]
[1765815046414,0.66668,87167.0,87166.0,0.0114725]
[1765815046717,0.80668,87167.0,87166.0,0.03947659]
[1765815046911,0.66668,87161.0,87160.0,0.09295335]
[1765815047106,0.6781533,87160.0,87158.0,0.08148005]
[1765815047314,0.6781533,87160.0,87156.0,0.005]
[1765815047315,0.66668,87157.0,87156.0,0.005]
[1765815047514,0.83668,87157.0,87156.0,0.005]
[1765815047915,0.6781539,87156.0,87155.0,0.08168846]
[1765815048115,0.85668,87156.0,87155.0,0.08168846]
[1765815048411,0.85668,87156.0,87155.0,0.00017204]
[1765815048617,0.85668,87156.0,87155.0,0.08173269]
[1765815049115,0.68668,87156.0,87155.0,0.00017204]
[1765815049415,0.83668,87156.0,87155.0,0.00017204]
[1765815050410,0.83668,87156.0,87155.0,0.00217204]
[1765815050713,0.66668,87148.0,87147.0,0.02107001]
[1765815050910,0.8481549,87148.0,87147.0,0.02107001]
[1765815052224,0.8481549,87148.0,87147.0,0.02307001]
[1765815052814,0.84823722,87148.0,87147.0,1e-08]
[1765815053122,0.84823722,87148.0,87147.0,0.02022964]
[1765815053320,0.18155722,87148.0,87147.0,1e-08]
[1765815053520,0.66668,87141.0,87140.0,0.10186056]
[1765815053720,0.83668,87141.0,87140.0,0.10186056]
[1765815053918,0.83668,87141.0,87131.0,0.14260479]
[1765815053919,0.768367,87132.0,87131.0,0.14260479]
[1765815054122,0.6781577,87127.0,87126.0,4.79e-06]
[1765815054323,0.8581577,87127.0,87126.0,4.79e-06]
[1765815054516,0.66668,87118.0,87117.0,0.24322117]
[1765815054714,0.66668,87118.0,87117.0,0.011479]
[1765815054914,0.66668,87118.0,87117.0,0.03207473]
[1765815055322,0.66680119,87118.0,87117.0,0.02059573]
[1765815055512,0.66668,87111.0,87110.0,0.0114798]
[1765815055710,0.83668,87111.0,87110.0,0.0114798]
[1765815055916,0.17,87111.0,87110.0,0.73085318]
[1765815056115,0.32491119,87118.0,87117.0,0.011479]
[1765815056315,0.32491119,87118.0,87117.0,0.710399]
[1765815056316,0.48491119,87118.0,87117.0,0.710399]
[1765815056520,0.00012119,87118.0,87117.0,0.710399]
[1765815056820,0.00012119,87118.0,87117.0,0.711399]
[1765815057620,0.00012119,87118.0,87117.0,0.712399]
[1765815057821,0.66680119,87118.0,87117.0,0.014479]
[1765815058223,0.72680119,87118.0,87117.0,0.003]
[1765815058528,0.80680119,87118.0,87117.0,0.004]
[1765815058824,0.85680119,87118.0,87117.0,0.004]
[1765815060421,0.6781606,87105.0,87098.0,0.00229628]
[1765815060716,0.85668,87105.0,87104.0,0.02051715]
[1765815060922,0.85668,87105.0,87104.0,8.078e-05]
[1765815061329,0.85668,87105.0,87104.0,0.03179076]
[1765815061522,0.19,87105.0,87104.0,0.73071076]
[1765815061726,0.86601,87105.0,87104.0,0.02031006]
[1765815062718,0.86601,87105.0,87104.0,0.36506006]
[1765815062920,0.86601,87105.0,87104.0,0.02031006]
[1765815063431,0.86601,87105.0,87104.0,0.68931006]
[1765815063627,0.86601,87105.0,87104.0,0.02031006]
[1765815064832,0.86701,87105.0,87104.0,0.02031006]
[1765815065537,0.86901,87105.0,87104.0,0.02031006]
[1765815066638,0.86801,87105.0,87104.0,0.02131006]
[1765815067245,0.86601,87105.0,87104.0,0.02131006]
[1765815068035,0.86701,87105.0,87104.0,0.02031006]
[1765815068433,0.001,87105.0,87104.0,0.68931006]
[1765815069236,0.70654,87115.0,87114.0,0.0114794]
[1765815069439,0.70654,87115.0,87114.0,0.3562294]
[1765815069746,0.89654,87115.0,87114.0,0.0114794]
[1765815070139,0.00012119,87118.0,87117.0,0.680479]
[1765815070440,0.27,87132.0,87117.0,0.680479]
[1765815070640,0.19017214,87126.0,87125.0,0.6804779]
[1765815071047,0.00017214,87126.0,87125.0,0.6804779]
[1765815071448,0.00026242,87126.0,87125.0,0.6804779]
[1765815072547,0.00026242,87126.0,87125.0,0.6814779]
[1765815073458,0.00026242,87126.0,87125.0,0.6834779]
[1765815073660,0.00026242,87126.0,87125.0,0.672]
[1765815073961,0.70680242,87126.0,87125.0,0.003]
[1765815074262,0.87680242,87126.0,87125.0,0.34775]
[1765815074556,0.00026242,87126.0,87125.0,0.672]
[1765815075155,0.16026242,87126.0,87125.0,0.671]
[1765815075355,0.00126242,87126.0,87125.0,0.671]
[1765815075955,0.00026242,87126.0,87125.0,0.671]
[1765815076156,0.00026242,87126.0,87125.0,0.669]
[1765815077062,0.70680242,87126.0,87125.0,0.671]
[1765815077359,0.70680242,87126.0,87125.0,0.002]
[1765815077360,0.89680242,87126.0,87125.0,0.002]
[1765815077557,0.7180189,87118.0,87117.0,0.00017214]
[1765815077760,0.35532,87110.0,87109.0,0.0114799]
[1765815077956,0.19,87110.0,87109.0,0.6804799]
[1765815078561,0.89654,87110.0,87109.0,0.6804799]
[1765815079267,0.89654,87110.0,87109.0,0.669]
[1765815079852,0.70654,87105.0,87104.0,0.02031006]
[1765815080058,0.9080206,87105.0,87104.0,0.02031006]
[1765815081262,0.9100206,87105.0,87104.0,0.02031006]
[1765815081664,0.718021,87102.0,87098.0,0.00229628]
[1765815081856,0.718021,87102.0,87086.0,0.14271252]
[1765815081857,0.70654,87094.0,87093.0,0.10186952]
[1765815082058,0.70654,87086.0,87085.0,0.10186952]
[1765815082265,0.70654,87086.0,87084.0,0.10186952]
[1765815082266,0.7180232,87085.0,87084.0,0.10186952]
[1765815082468,0.70654,87083.0,87082.0,0.10186952]
[1765815082674,0.70654,87080.0,87079.0,0.10186952]
[1765815082860,0.70654,87080.0,87070.0,0.14271252]
[1765815082861,0.70654,87078.0,87077.0,0.10186952]
[1765815083165,0.88654,87078.0,87077.0,0.10186952]
[1765815083371,0.7180243,87077.0,87076.0,0.10186952]
[1765815083572,0.7180255,87068.0,87067.0,0.14271252]
[1765815083761,0.7180255,87068.0,87054.0,0.20428485]
[1765815083762,0.7180259,87065.0,87064.0,0.1111863]
[1765815083960,0.8880259,87065.0,87064.0,0.1111863]
[1765815084155,0.8880259,87065.0,87064.0,0.02045411]
[1765815084360,0.0114862,87063.0,87058.0,0.0114868]
[1765815084555,0.3668065,87061.0,87060.0,0.21071]
[1765815084762,0.8980265,87061.0,87060.0,0.23085849]
[1765815085077,0.8980265,87061.0,87060.0,0.02014849]
[1765815085256,0.8980265,87061.0,87048.0,0.21071]
[1765815085257,0.35122,87049.0,87048.0,0.21071]
[1765815085463,0.7180281,87048.0,87047.0,0.20428485]
[1765815085762,0.7180284,87046.0,87043.0,0.0114887]
[1765815085967,0.01160825,87049.0,87048.0,0.8911981]
[1765815086265,0.20012025,87049.0,87048.0,0.8911981]
[1765815086573,0.55544025,87049.0,87048.0,0.8911981]
[1765815086973,0.20012025,87049.0,87048.0,0.8911981]
[1765815087173,0.04012025,87049.0,87048.0,0.8911981]
[1765815087473,0.74666025,87049.0,87048.0,0.8911981]
[1765815087663,0.88666025,87049.0,87048.0,0.21471]
[1765815087858,0.88666025,87049.0,87048.0,0.88371]
[1765815088971,0.88666025,87049.0,87048.0,0.88671]
[1765815089375,0.88666025,87049.0,87048.0,0.21771]
[1765815089570,0.88666025,87049.0,87048.0,0.007]
[1765815089871,0.88666025,87049.0,87048.0,0.21771]
[1765815090075,0.88666025,87049.0,87048.0,0.007]
[1765815091571,0.88666025,87049.0,87048.0,0.0184881]
[1765815091772,0.88666025,87049.0,87048.0,0.007]
[1765815092371,0.89814825,87049.0,87048.0,0.007]
[1765815093179,0.66137,87031.0,87030.0,0.85733813]
[1765815093469,0.66137,87031.0,87028.0,0.02876946]
[1765815093470,0.66137,87038.0,87037.0,0.68741]
[1765815093670,0.32848,87025.0,87024.0,0.58525745]
[1765815093878,0.83137,87025.0,87024.0,0.5684213]
[1765815094077,0.68137,87025.0,87024.0,0.5684213]
[1765815094375,0.68137,87025.0,87024.0,0.58933969]
[1765815094764,0.68137,87025.0,87024.0,0.24311969]
[1765815094966,0.68137,87025.0,87024.0,0.58933969]
[1765815095170,0.84137,87025.0,87024.0,0.93052969]
[1765815095476,0.50848,87025.0,87024.0,0.93052969]
[1765815095662,0.50848,87025.0,87024.0,0.93352969]
[1765815095867,0.50848,87025.0,87024.0,0.93752969]
[1765815097073,0.18,87025.0,87024.0,0.93752969]
[1765815097272,0.00017235,87033.0,87032.0,0.9140602]
[1765815097470,0.19017235,87033.0,87032.0,0.9140602]
[1765815097981,0.85154235,87033.0,87032.0,0.9140602]
[1765815098169,0.51865235,87033.0,87032.0,0.9140602]
[1765815098570,0.19017235,87033.0,87032.0,0.9160602]
[1765815098874,0.85154235,87033.0,87032.0,0.21716]
[1765815099266,0.19017235,87033.0,87032.0,0.90457]
[1765815099671,0.19017235,87033.0,87032.0,0.90757]
[1765815099871,0.86303245,87033.0,87032.0,0.22016]
[1765815100182,0.86303245,87033.0,87032.0,0.005]
[1765815100475,0.00017235,87033.0,87032.0,0.90757]
[1765815100673,0.32865235,87033.0,87032.0,0.90757]
[1765815101079,0.00017235,87033.0,87032.0,0.90757]
[1765815101376,0.00012025,87049.0,87048.0,0.6988981]
[1765815101881,0.02,87063.0,87062.0,0.6988962]
[1765815102071,0.19,87063.0,87062.0,0.6988962]
[1765815102271,0.85137,87063.0,87062.0,0.68741]
[1765815102466,0.0114866,87059.0,87058.0,0.3577067]
[1765815102678,0.66137,87063.0,87062.0,0.0114862]
[1765815102882,0.17011755,87063.0,87062.0,0.6988962]
[1765815103885,0.17311755,87063.0,87062.0,0.6988962]
[1765815104471,0.83448755,87063.0,87062.0,0.6988962]
[1765815104873,0.83448755,87063.0,87062.0,0.79212617]
[1765815105081,0.83448755,87063.0,87062.0,0.78063997]
[1765815105281,0.83748755,87063.0,87062.0,0.78063997]
[1765815105483,0.83448755,87063.0,87062.0,0.09322997]
[1765815105781,0.84697375,87063.0,87060.0,0.0114864]
[1765815105981,0.66137,87055.0,87054.0,0.21533235]
[1765815106183,0.6728572,87055.0,87054.0,0.57303965]
[1765815106483,0.6928572,87055.0,87054.0,0.65287962]
[1765815106682,0.85137,87055.0,87054.0,0.00017235]
[1765815107277,0.85137,87055.0,87054.0,0.68758235]
[1765815108984,0.85137,87055.0,87054.0,0.00017235]
[1765815109482,0.85237,87055.0,87054.0,0.00017235]
[1765815109684,0.85337,87055.0,87054.0,0.00017235]
[1765815109977,0.85237,87055.0,87054.0,0.00017235]
[1765815110184,0.85437,87055.0,87054.0,0.00017235]
[1765815111289,0.0114901,87034.0,87017.0,0.0114921]
[1765815111588,0.66137,87033.0,87030.0,0.0114904]
[1765815111786,0.3399695,87038.0,87037.0,0.6988995]
[1765815111990,0.5099695,87038.0,87037.0,0.6988995]
[1765815112283,0.8428595,87038.0,87037.0,0.6988995]
[1765815112485,0.5099695,87038.0,87037.0,0.6988995]
[1765815112689,0.8428595,87038.0,87037.0,0.6988995]
[1765815112891,0.8428595,87038.0,87037.0,0.68741]
[1765815113288,0.6728601,87033.0,87032.0,0.005]
[1765815113586,0.6728601,87033.0,87024.0,0.03240959]
[1765815113587,0.6728611,87025.0,87024.0,0.03240959]
[1765815113783,0.8728611,87025.0,87024.0,0.03240959]
[1765815113989,0.86137,87025.0,87024.0,0.71981959]
[1765815114384,0.86137,87025.0,87024.0,0.70832839]
[1765815114689,0.86137,87025.0,87024.0,0.02091839]
[1765815114893,0.2,87025.0,87024.0,0.68741]
[1765815115590,0.86137,87025.0,87024.0,0.71057101]
[1765815115794,0.2,87025.0,87024.0,0.71057101]
[1765815116095,0.5399711,87025.0,87024.0,0.71457101]
[1765815116484,0.32848,87030.0,87029.0,0.6989005]
[1765815116686,0.00010635,87033.0,87024.0,0.02716101]
[1765815116687,0.00010635,87033.0,87032.0,0.6989002]
[1765815116894,0.84147635,87033.0,87032.0,0.68741]
[1765815117493,0.18010635,87033.0,87032.0,0.68741]
[1765815117688,0.00010635,87033.0,87032.0,0.68741]
[1765815117886,0.00010635,87033.0,87032.0,0.90257]
[1765815118693,0.0114877,87051.0,87045.0,0.6988985]
[1765815118896,0.19166075,87046.0,87045.0,0.6988985]
[1765815119090,0.85303075,87046.0,87045.0,0.68741]
[1765815119389,0.50865235,87046.0,87045.0,0.68741]
[1765815119589,0.84154235,87046.0,87045.0,0.68741]
[1765815119891,0.84154235,87046.0,87034.0,0.34622]
[1765815119892,0.6728598,87035.0,87034.0,0.34622]
[1765815120089,0.32848,87044.0,87043.0,0.90257]
[1765815120294,0.6728597,87036.0,87035.0,0.68741]
[1765815120480,0.6728601,87033.0,87032.0,0.21516]
[1765815120685,0.8528601,87033.0,87032.0,0.21516]
[1765815121186,0.8528601,87033.0,87024.0,0.03165221]
[1765815121187,0.6728611,87025.0,87024.0,0.02016101]
[1765815121378,0.6728615,87022.0,87021.0,0.21516]
[1765815121578,0.8428615,87022.0,87021.0,0.02074512]
[1765815121784,0.7037819,87019.0,87018.0,0.00229839]
[1765815121983,0.0114916,87022.0,87021.0,0.87755]
[1765815122186,0.89229,87022.0,87021.0,0.20059]
[1765815122378,0.54259,87022.0,87021.0,0.87755]
[1765815122579,0.2,87022.0,87021.0,0.87755]
[1765815122988,0.9037815,87022.0,87021.0,0.87755]
[1765815123187,0.69229,87019.0,87018.0,0.0224267]
[1765815123382,0.86229,87019.0,87018.0,0.0264267]
[1765815123788,0.86229,87019.0,87018.0,0.7033867]
[1765815124290,0.00017235,87027.0,87026.0,0.688451]
[1765815124781,2.54e-06,87029.0,87028.0,0.67696]
[1765815124983,0.0114871,87056.0,87045.0,0.6884485]
[1765815125185,0.0114882,87047.0,87045.0,0.6884485]
[1765815125383,0.0114859,87065.0,87045.0,0.6884485]
[1765815125588,0.011488,87049.0,87045.0,0.6884485]
[1765815125902,0.19006941,87046.0,87045.0,0.67696]
[1765815126089,0.7037793,87040.0,87039.0,0.34731]
[1765815126393,0.69229,87038.0,87037.0,0.00017235]
[1765815126586,0.89229,87038.0,87037.0,0.00017235]
[1765815127386,0.2,87038.0,87037.0,0.67713235]
[1765815127691,0.89229,87038.0,87037.0,0.00017235]
[1765815128796,0.89429,87038.0,87037.0,0.00017235]
[1765815129595,0.89429,87038.0,87037.0,0.01166185]
[1765815130094,0.112,87038.0,87037.0,0.68862185]
[1765815130286,0.82429,87038.0,87037.0,0.67713235]
[1765815130482,0.82429,87038.0,87037.0,0.00017235]
[1765815130895,0.82429,87038.0,87037.0,6.605e-05]
[1765815131285,0.7037819,87019.0,87012.0,0.30719326]
[1765815131488,0.8937819,87019.0,87012.0,0.30719326]
[1765815131702,0.8937819,87019.0,87012.0,0.09203326]
[1765815131997,0.89385131,87019.0,87008.0,0.16072]
[1765815132495,0.89385131,87019.0,87018.0,0.0244267]
[1765815133687,0.89385131,87019.0,87018.0,0.0264267]
[1765815134096,0.7037848,86997.0,86987.0,0.0114961]
[1765815134292,0.9037848,86997.0,86996.0,0.02105339]
[1765815134495,0.9037848,86997.0,86996.0,0.22164339]
[1765815134890,0.9037848,86997.0,86996.0,0.02105339]
[1765815135094,0.9037848,86997.0,86996.0,0.90360339]
[1765815135300,0.9037848,86997.0,86996.0,0.02605339]
[1765815135497,0.9037848,86997.0,86996.0,0.00876844]
[1765815135804,0.7037872,86979.0,86978.0,0.00229945]
[1765815136101,0.52259,86979.0,86978.0,0.67925945]
[1765815136289,0.18,86979.0,86978.0,0.67925945]
[1765815136484,0.87243693,86979.0,86978.0,0.00229945]
[1765815136696,0.87243693,86979.0,86978.0,0.02311874]
[1765815137299,0.87243693,86979.0,86978.0,0.02611874]
[1765815138395,0.87243693,86979.0,86978.0,0.02811874]
[1765815138899,1.59747693,86979.0,86978.0,0.01919702]
[1765815139088,1.59747693,86979.0,86978.0,0.005]
[1765815139492,0.70379,86958.0,86955.0,0.10203122]
[1765815139697,0.69229,86956.0,86955.0,0.10203122]
[1765815139901,0.69229,86956.0,86945.0,0.14264643]
[1765815139902,0.75229,86956.0,86953.0,0.0115006]
[1765815140203,0.69229,86950.0,86949.0,0.10203122]
[1765815140496,0.71229,86950.0,86949.0,0.36746642]
[1765815140695,0.71229,86950.0,86946.0,0.11353272]
[1765815141100,0.02,86950.0,86949.0,0.67696]
[1765815141297,0.69229,86949.0,86948.0,0.0115013]
[1765815141499,0.69229,86948.0,86947.0,0.02060114]
[1765815141704,0.86229,86948.0,86947.0,0.02060114]
[1765815141899,0.86229,86948.0,86947.0,0.02260114]
[1765815144788,0.86229,86948.0,86947.0,0.02060114]
[1765815147201,0.86229,86948.0,86947.0,0.69756114]
[1765815147202,0.51259,86948.0,86947.0,0.69756114]
[1765815147502,0.86229,86948.0,86947.0,0.02060114]
[1765815148092,0.86229,86948.0,86947.0,0.00012283]
[1765815148293,0.7037925,86939.0,86938.0,0.0023005]
[1765815148603,1.5991525,86939.0,86938.0,0.0023005]
[1765815149103,1.5991525,86939.0,86938.0,0.02333296]
[1765815149897,1.6011525,86939.0,86938.0,0.02333296]
[1765815150499,1.6021525,86939.0,86938.0,0.02333296]
[1765815150898,1.6021525,86939.0,86938.0,0.0023005]
[1765815151093,0.35424,86924.0,86923.0,0.10203122]
[1765815151299,0.70623,86922.0,86921.0,0.10203122]
[1765815151499,0.89623,86922.0,86921.0,0.78057122]
[1765815151708,0.89623,86922.0,86921.0,0.10203122]
[1765815152194,0.89623,86922.0,86920.0,0.10203122]
[1765815152195,0.6957949,86921.0,86920.0,0.10203122]
[1765815152397,0.8857949,86921.0,86920.0,0.10203122]
[1765815153403,0.68429,86920.0,86919.0,0.10203122]
[1765815153603,0.6957951,86919.0,86918.0,0.10203122]
[1765815153799,0.35251,86917.0,86916.0,0.8789854]
[1765815153999,0.52251,86917.0,86916.0,0.86748]
[1765815154196,0.52251,86917.0,86916.0,0.88770419]
[1765815154409,0.00012172,86924.0,86923.0,0.6724946]
[1765815155611,0.00012172,86924.0,86923.0,0.6734946]
[1765815157204,0.07012172,86924.0,86923.0,0.6744946]
[1765815157511,0.00012172,86924.0,86923.0,0.6744946]
[1765815159302,0.00012172,86924.0,86923.0,0.81714103]
[1765815160510,0.00012172,86924.0,86923.0,0.6744946]
[1765815162600,0.01162622,86924.0,86923.0,0.6744946]
[1765815162795,0.36413622,86924.0,86923.0,0.6744946]
[1765815163010,0.01162622,86924.0,86923.0,0.6744946]
[1765815163401,0.00012172,86924.0,86923.0,0.6744946]
[1765815163909,0.35263172,86924.0,86923.0,0.3403846]
[1765815164105,0.35263172,86924.0,86923.0,0.6744946]
[1765815164301,0.00012172,86924.0,86923.0,0.6744946]
[1765815164498,0.88441172,86924.0,86923.0,0.32888]
[1765815164702,0.88441172,86924.0,86923.0,0.002]
[1765815165216,0.88441172,86924.0,86923.0,1e-07]
[1765815165507,1.28441172,86924.0,86923.0,1e-07]
[1765815165917,1.28441172,86924.0,86921.0,7e-08]
[1765815165918,0.79015,86922.0,86921.0,7e-08]
[1765815166099,0.6957966,86908.0,86907.0,0.20428485]
[1765815166298,0.6957966,86908.0,86907.0,0.22446418]
[1765815166299,0.8757966,86908.0,86907.0,0.22446418]
[1765815166622,0.8757966,86908.0,86907.0,0.02017933]
[1765815166802,0.68429,86906.0,86905.0,0.20428485]
[1765815167002,0.86429,86906.0,86905.0,0.53116485]
[1765815167302,0.18,86906.0,86905.0,0.88560444]
[1765815167498,0.18,86906.0,86905.0,0.68131959]
[1765815167812,0.86429,86906.0,86905.0,0.02032959]
[1765815168012,0.88429,86906.0,86905.0,0.20613168]